[Event "*** Titled Tuesday Blitz"]
[Site "Chess.com"]
[Date "2020.12.29"]
[Round "8"]
[White "Titus369"]
[Black "Cambek64"]
[Result "1-0"]
[WhiteElo "2543"]
[BlackElo "2328"]
[TimeControl "180+1"]
[EndTime "11:28:36 PST"]
[Termination "Titus369 won on time"]

1. e4 {[%clk 0:03:00.9]} 1... e6 {[%clk 0:02:59]} 2. d4 {[%clk 0:02:59.5]} 2...
d5 {[%clk 0:02:56.8]} 3. Nd2 {[%clk 0:02:59.9]} 3... c5 {[%clk 0:02:54.8]} 4.
Ngf3 {[%clk 0:02:59.4]} 4... Nc6 {[%clk 0:02:54.1]} 5. exd5 {[%clk 0:02:59.1]}
5... Qxd5 {[%clk 0:02:53.3]} 6. Bc4 {[%clk 0:02:56.2]} 6... Qd8 {[%clk
0:02:52.9]} 7. dxc5 {[%clk 0:02:46.9]} 7... Bxc5 {[%clk 0:02:51.1]} 8. O-O
{[%clk 0:02:47.3]} 8... Nf6 {[%clk 0:02:49.8]} 9. c3 {[%clk 0:02:44.6]} 9... O-O
{[%clk 0:02:36.4]} 10. Qe2 {[%clk 0:02:43.6]} 10... a6 {[%clk 0:02:32.1]} 11. a4
{[%clk 0:02:42.6]} 11... Bd7 {[%clk 0:02:25.5]} 12. Rd1 {[%clk 0:02:39.7]} 12...
Qc7 {[%clk 0:02:20.1]} 13. Ne4 {[%clk 0:02:36.3]} 13... Be7 {[%clk 0:02:17.6]}
14. Bg5 {[%clk 0:02:29.3]} 14... Nxe4 {[%clk 0:02:15.5]} 15. Qxe4 {[%clk
0:02:30.2]} 15... h6 {[%clk 0:01:46.6]} 16. Bxe7 {[%clk 0:02:24.7]} 16... Nxe7
{[%clk 0:01:46.4]} 17. Ne5 {[%clk 0:02:22.6]} 17... Bc6 {[%clk 0:01:41.7]} 18.
Nxc6 {[%clk 0:02:16.2]} 18... Nxc6 {[%clk 0:01:39.2]} 19. Bd3 {[%clk 0:02:15]}
19... g6 {[%clk 0:01:38.9]} 20. Qh4 {[%clk 0:02:14.7]} 20... Kg7 {[%clk
0:01:37.4]} 21. Re1 {[%clk 0:02:12.2]} 21... Rad8 {[%clk 0:01:35.7]} 22. Re3
{[%clk 0:02:11]} 22... Rd5 {[%clk 0:01:32.6]} 23. h3 {[%clk 0:01:53.3]} 23...
Qe7 {[%clk 0:01:24.9]} 24. Qc4 {[%clk 0:01:47.5]} 24... Rfd8 {[%clk 0:01:22.2]}
25. Bf1 {[%clk 0:01:45.2]} 25... Rd2 {[%clk 0:01:17.7]} 26. b4 {[%clk
0:01:38.4]} 26... Qf6 {[%clk 0:01:14.9]} 27. Rf3 {[%clk 0:01:32.6]} 27... Ne5
{[%clk 0:01:14.3]} 28. Rxf6 {[%clk 0:01:31.7]} 28... Nxc4 {[%clk 0:01:14]} 29.
Rf3 {[%clk 0:01:28.7]} 29... Rd1 {[%clk 0:01:06.3]} 30. Rxd1 {[%clk 0:01:26.7]}
30... Rxd1 {[%clk 0:01:05.8]} 31. Rd3 {[%clk 0:01:24.4]} 31... Rxd3 {[%clk
0:00:56.6]} 32. Bxd3 {[%clk 0:01:24]} 32... Nb6 {[%clk 0:00:56.2]} 33. Bc2
{[%clk 0:01:23.5]} 33... Nd5 {[%clk 0:00:55.6]} 34. Be4 {[%clk 0:01:22.3]} 34...
b6 {[%clk 0:00:19.2]} 35. Bxd5 {[%clk 0:01:19]} 35... exd5 {[%clk 0:00:18.8]}
36. f4 {[%clk 0:01:19.7]} 36... f5 {[%clk 0:00:16.5]} 37. Kf2 {[%clk 0:01:19.5]}
37... Kf6 {[%clk 0:00:17.1]} 38. Ke3 {[%clk 0:01:19.9]} 38... Ke6 {[%clk
0:00:17.6]} 39. Kd4 {[%clk 0:01:20.3]} 39... Kd6 {[%clk 0:00:16.7]} 40. c4
{[%clk 0:01:16.4]} 40... dxc4 {[%clk 0:00:15.7]} 41. Kxc4 {[%clk 0:01:17.3]}
41... Kc6 {[%clk 0:00:15.8]} 42. Kd4 {[%clk 0:01:15.7]} 42... b5 {[%clk
0:00:15.2]} 43. a5 {[%clk 0:01:13]} 43... Kd6 {[%clk 0:00:15.6]} 44. g3 {[%clk
0:01:12.6]} 44... g5 {[%clk 0:00:14.9]} 45. h4 {[%clk 0:01:06.3]} 45... gxh4
{[%clk 0:00:13.2]} 46. gxh4 {[%clk 0:01:07.2]} 46... h5 {[%clk 0:00:13.2]} 47.
Ke3 {[%clk 0:01:07.1]} 47... Ke6 {[%clk 0:00:11.3]} 48. Kd2 {[%clk 0:01:06.2]}
48... Kd7 {[%clk 0:00:10.2]} 49. Kc2 {[%clk 0:01:04.8]} 49... Kc6 {[%clk
0:00:10.3]} 50. Kc3 {[%clk 0:01:03.1]} 50... Kd7 {[%clk 0:00:08]} 51. Kd3 {[%clk
0:01:02.4]} 51... Kc6 {[%clk 0:00:07.4]} 52. Ke3 {[%clk 0:01:01.8]} 52... Kd7
{[%clk 0:00:07.1]} 53. Kd4 {[%clk 0:00:59.5]} 53... Kd6 {[%clk 0:00:07.1]} 54.
Kc3 {[%clk 0:00:59.7]} 54... Kc6 {[%clk 0:00:07.5]} 55. Kd2 {[%clk 0:00:59.3]}
55... Kd6 {[%clk 0:00:06.2]} 56. Ke2 {[%clk 0:00:59]} 56... Kc6 {[%clk
0:00:05.9]} 57. Kd2 {[%clk 0:00:58.3]} 57... Kd6 {[%clk 0:00:06]} 58. Ke3 {[%clk
0:00:58.7]} 58... Kc6 {[%clk 0:00:05.2]} 59. Ke2 {[%clk 0:00:58.5]} 59... Kd6
{[%clk 0:00:05.1]} 60. Kd2 {[%clk 0:00:58.3]} 60... Kc6 {[%clk 0:00:05.2]} 61.
Ke3 {[%clk 0:00:58.6]} 61... Kd6 {[%clk 0:00:04.8]} 62. Kd4 {[%clk 0:00:58.6]}
62... Kc6 {[%clk 0:00:03.6]} 63. Ke5 {[%clk 0:00:58.5]} 63... Kd7 {[%clk
0:00:03.6]} 64. Kxf5 {[%clk 0:00:56.2]} 64... Kd6 {[%clk 0:00:03.4]} 65. Kg6
{[%clk 0:00:55.6]} 1-0

[Event "*** Titled Tuesday Blitz"]
[Site "Chess.com"]
[Date "2020.12.29"]
[Round "8"]
[White "davidkalashian"]
[Black "ural58"]
[Result "1/2-1/2"]
[WhiteElo "2568"]
[BlackElo "2411"]
[TimeControl "180+1"]
[EndTime "11:28:38 PST"]
[Termination "Game drawn by repetition"]

1. e4 {[%clk 0:02:59.7]} 1... d5 {[%clk 0:02:59.7]} 2. exd5 {[%clk 0:02:59.4]}
2... Qxd5 {[%clk 0:02:59.6]} 3. Nc3 {[%clk 0:02:59.2]} 3... Qa5 {[%clk
0:02:59.4]} 4. d4 {[%clk 0:02:58.4]} 4... Nf6 {[%clk 0:02:59.4]} 5. Nf3 {[%clk
0:02:57.3]} 5... Nc6 {[%clk 0:02:59.1]} 6. Bb5 {[%clk 0:02:44.1]} 6... Ne4
{[%clk 0:02:58.4]} 7. Bxc6+ {[%clk 0:02:42.5]} 7... bxc6 {[%clk 0:02:57.7]} 8.
Bd2 {[%clk 0:02:42.8]} 8... Nxc3 {[%clk 0:02:56.9]} 9. Bxc3 {[%clk 0:02:42.7]}
9... Qd5 {[%clk 0:02:56.8]} 10. O-O {[%clk 0:02:29]} 10... Bg4 {[%clk
0:02:55.7]} 11. h3 {[%clk 0:02:24.6]} 11... Bxf3 {[%clk 0:02:55.6]} 12. Qxf3
{[%clk 0:02:25.5]} 12... Qxf3 {[%clk 0:02:55.6]} 13. gxf3 {[%clk 0:02:26.4]}
13... e6 {[%clk 0:02:56.2]} 14. Rfe1 {[%clk 0:02:24.3]} 14... Kd7 {[%clk
0:02:56]} 15. a4 {[%clk 0:02:22.7]} 15... Rb8 {[%clk 0:02:54.5]} 16. a5 {[%clk
0:02:18.5]} 16... Bb4 {[%clk 0:02:52.9]} 17. Ra4 {[%clk 0:02:03]} 17... Bxc3
{[%clk 0:02:51.9]} 18. bxc3 {[%clk 0:02:03.9]} 18... Rb5 {[%clk 0:02:51.2]} 19.
Kf1 {[%clk 0:01:51.1]} 19... Rhb8 {[%clk 0:02:49.7]} 20. Ke2 {[%clk 0:01:51.3]}
20... Rh5 {[%clk 0:02:49.2]} 21. Rh1 {[%clk 0:01:46.8]} 21... Rbb5 {[%clk
0:02:48.9]} 22. a6 {[%clk 0:01:43.2]} 22... c5 {[%clk 0:02:43.2]} 23. Rd1 {[%clk
0:01:36.7]} 23... Kc6 {[%clk 0:02:31.8]} 24. Rc4 {[%clk 0:01:21.3]} 24... Rb2
{[%clk 0:02:10.3]} 25. Kd2 {[%clk 0:01:12.9]} 25... Kb5 {[%clk 0:02:05.4]} 26.
Rxc5+ {[%clk 0:01:12.1]} 26... Rxc5 {[%clk 0:02:04.4]} 27. dxc5 {[%clk 0:01:13]}
27... Kxc5 {[%clk 0:02:04.2]} 28. Re1 {[%clk 0:01:12.2]} 28... Ra2 {[%clk
0:02:00.6]} 29. Re5+ {[%clk 0:01:08.2]} 29... Kd6 {[%clk 0:02:00.6]} 30. Rb5
{[%clk 0:01:05.8]} 30... Rxa6 {[%clk 0:01:59.3]} 31. Rb8 {[%clk 0:01:04.9]}
31... Ra5 {[%clk 0:01:58.5]} 32. Rd8+ {[%clk 0:00:57]} 32... Ke7 {[%clk
0:01:57.7]} 33. Rc8 {[%clk 0:00:57.4]} 33... Kd7 {[%clk 0:01:57.8]} 34. Rf8
{[%clk 0:00:57.3]} 34... Rf5 {[%clk 0:01:57.2]} 35. Ke3 {[%clk 0:00:57]} 35...
a5 {[%clk 0:01:56.7]} 36. f4 {[%clk 0:00:55.3]} 36... g6 {[%clk 0:01:55.7]} 37.
f3 {[%clk 0:00:49.6]} 37... Kc6 {[%clk 0:01:45.5]} 38. Rb8 {[%clk 0:00:44.4]}
38... Rh5 {[%clk 0:01:41.8]} 39. Rf8 {[%clk 0:00:41.9]} 39... a4 {[%clk
0:00:59.9]} 40. Ra8 {[%clk 0:00:34.8]} 40... Kb5 {[%clk 0:01:00]} 41. Rb8+
{[%clk 0:00:26.1]} 41... Kc4 {[%clk 0:00:59.9]} 42. Rb4+ {[%clk 0:00:26.1]}
42... Kxc3 {[%clk 0:00:59.9]} 43. Rxa4 {[%clk 0:00:26.5]} 43... Kxc2 {[%clk
0:00:59]} 44. Rc4+ {[%clk 0:00:26.1]} 44... Kd1 {[%clk 0:00:58.4]} 45. Rxc7
{[%clk 0:00:27]} 45... Rf5 {[%clk 0:00:56.8]} 46. Rc4 {[%clk 0:00:23.4]} 46...
h6 {[%clk 0:00:36.8]} 47. h4 {[%clk 0:00:17.3]} 47... h5 {[%clk 0:00:30.9]} 48.
Rc7 {[%clk 0:00:11.4]} 48... Rf6 {[%clk 0:00:16.9]} 49. Rc5 {[%clk 0:00:10.9]}
49... Rf5 {[%clk 0:00:16]} 50. Rc7 {[%clk 0:00:10.7]} 50... Rf6 {[%clk
0:00:16.1]} 51. Rc4 {[%clk 0:00:08.4]} 51... Rf5 {[%clk 0:00:16.1]} 52. Rc7
{[%clk 0:00:08.5]} 1/2-1/2

[Event "*** Titled Tuesday Blitz"]
[Site "Chess.com"]
[Date "2020.12.29"]
[Round "8"]
[White "MPGM"]
[Black "mishanick"]
[Result "0-1"]
[WhiteElo "2707"]
[BlackElo "2968"]
[TimeControl "180+1"]
[EndTime "11:28:40 PST"]
[Termination "mishanick won on time"]

1. d4 {[%clk 0:03:00.9]} 1... Nf6 {[%clk 0:02:57.5]} 2. c4 {[%clk 0:03:00.1]}
2... e6 {[%clk 0:02:50.5]} 3. Nc3 {[%clk 0:03:00.3]} 3... d5 {[%clk 0:02:50.2]}
4. cxd5 {[%clk 0:02:59.7]} 4... exd5 {[%clk 0:02:50.5]} 5. Bg5 {[%clk
0:02:59.1]} 5... Be7 {[%clk 0:02:50.3]} 6. e3 {[%clk 0:02:58.5]} 6... c6 {[%clk
0:02:49.2]} 7. Bd3 {[%clk 0:02:58.3]} 7... Bg4 {[%clk 0:02:49.2]} 8. Qc2 {[%clk
0:02:54.7]} 8... Nbd7 {[%clk 0:02:45.3]} 9. Nge2 {[%clk 0:02:52.7]} 9... h6
{[%clk 0:02:37.9]} 10. Bh4 {[%clk 0:02:49.6]} 10... O-O {[%clk 0:02:32.8]} 11.
f3 {[%clk 0:02:46.1]} 11... Be6 {[%clk 0:02:32.4]} 12. O-O {[%clk 0:02:44.6]}
12... Re8 {[%clk 0:02:27.2]} 13. Rad1 {[%clk 0:02:43.3]} 13... Nf8 {[%clk
0:02:27.4]} 14. Bf2 {[%clk 0:02:39.4]} 14... Qa5 {[%clk 0:02:20.5]} 15. h3
{[%clk 0:02:35.5]} 15... Rad8 {[%clk 0:02:19.5]} 16. e4 {[%clk 0:02:28]} 16...
dxe4 {[%clk 0:02:11.8]} 17. fxe4 {[%clk 0:02:28.9]} 17... Qg5 {[%clk 0:01:51.9]}
18. Ng3 {[%clk 0:01:59.1]} 18... Nh5 {[%clk 0:01:46.7]} 19. Nxh5 {[%clk
0:01:57.3]} 19... Qxh5 {[%clk 0:01:47.6]} 20. e5 {[%clk 0:01:47.8]} 20... Bh4
{[%clk 0:01:37.2]} 21. Ne4 {[%clk 0:01:34.9]} 21... Bxf2+ {[%clk 0:01:33.5]} 22.
Qxf2 {[%clk 0:01:35.8]} 22... Ng6 {[%clk 0:01:33.5]} 23. Nd6 {[%clk 0:01:33.1]}
23... Rf8 {[%clk 0:01:32.5]} 24. Nxb7 {[%clk 0:01:29.1]} 24... Rb8 {[%clk
0:01:30]} 25. Nc5 {[%clk 0:01:28.3]} 25... Qg5 {[%clk 0:01:18.7]} 26. Ne4 {[%clk
0:01:18.7]} 26... Qe7 {[%clk 0:01:15.9]} 27. b3 {[%clk 0:01:18.2]} 27... Rb4
{[%clk 0:01:12]} 28. Bc2 {[%clk 0:01:10.9]} 28... a5 {[%clk 0:01:02.4]} 29. Nd6
{[%clk 0:01:08.4]} 29... Nh4 {[%clk 0:01:01]} 30. Kh2 {[%clk 0:00:56.8]} 30...
Bd5 {[%clk 0:00:58]} 31. Nf5 {[%clk 0:00:52.5]} 31... Nxf5 {[%clk 0:00:57.4]}
32. Qxf5 {[%clk 0:00:52.7]} 32... g6 {[%clk 0:00:58.1]} 33. Qf4 {[%clk
0:00:52.2]} 33... Kg7 {[%clk 0:00:57.2]} 34. Rf2 {[%clk 0:00:46.4]} 34... Rd8
{[%clk 0:00:54.3]} 35. Rdf1 {[%clk 0:00:38.3]} 35... Be6 {[%clk 0:00:52.9]} 36.
Qf6+ {[%clk 0:00:31.5]} 36... Qxf6 {[%clk 0:00:52.8]} 37. Rxf6 {[%clk 0:00:32]}
37... Re8 {[%clk 0:00:40.2]} 38. Rd1 {[%clk 0:00:20.8]} 38... g5 {[%clk
0:00:28.6]} 39. Be4 {[%clk 0:00:20.1]} 39... Rd8 {[%clk 0:00:26.7]} 40. Bxc6
{[%clk 0:00:18.5]} 40... Rdxd4 {[%clk 0:00:27]} 41. Rxd4 {[%clk 0:00:18.3]}
41... Rxd4 {[%clk 0:00:27.9]} 42. Rf2 {[%clk 0:00:18.8]} 42... h5 {[%clk
0:00:26.4]} 43. g3 {[%clk 0:00:16.7]} 43... Rd3 {[%clk 0:00:25.8]} 44. Re2
{[%clk 0:00:13.6]} 44... h4 {[%clk 0:00:24.1]} 45. Rg2 {[%clk 0:00:10.8]} 45...
Kh6 {[%clk 0:00:20]} 46. Be4 {[%clk 0:00:07.4]} 46... Re3 {[%clk 0:00:20]} 47.
Bc2 {[%clk 0:00:07.6]} 47... Rxe5 {[%clk 0:00:18.6]} 48. gxh4 {[%clk 0:00:07.9]}
48... gxh4 {[%clk 0:00:19.5]} 49. Rf2 {[%clk 0:00:06.2]} 49... Kg5 {[%clk
0:00:18.1]} 50. Rg2+ {[%clk 0:00:04.1]} 50... Kf4 {[%clk 0:00:18.4]} 51. Rf2+
{[%clk 0:00:02.6]} 51... Ke3 {[%clk 0:00:18.7]} 52. Rg2 {[%clk 0:00:02]} 52...
Rc5 {[%clk 0:00:17.5]} 53. a3 {[%clk 0:00:01.9]} 53... Rc3 {[%clk 0:00:17.1]}
54. b4 {[%clk 0:00:02.3]} 54... Bd5 {[%clk 0:00:17.5]} 0-1

[Event "*** Titled Tuesday Blitz"]
[Site "Chess.com"]
[Date "2020.12.29"]
[Round "8"]
[White "Macron20hTF1"]
[Black "swisspower96"]
[Result "0-1"]
[WhiteElo "2492"]
[BlackElo "2672"]
[TimeControl "180+1"]
[EndTime "11:28:42 PST"]
[Termination "swisspower96 won by resignation"]

1. g3 {[%clk 0:03:00.9]} 1... d5 {[%clk 0:02:59.8]} 2. Bg2 {[%clk 0:03:01.2]}
2... e5 {[%clk 0:02:59.6]} 3. d3 {[%clk 0:03:01.8]} 3... Nc6 {[%clk 0:02:54.3]}
4. a3 {[%clk 0:03:01.5]} 4... Be6 {[%clk 0:02:51.1]} 5. b4 {[%clk 0:03:01]} 5...
Bd6 {[%clk 0:02:39]} 6. Nd2 {[%clk 0:02:59.6]} 6... f5 {[%clk 0:02:37.8]} 7. c4
{[%clk 0:02:57.6]} 7... Nf6 {[%clk 0:02:37.1]} 8. Bb2 {[%clk 0:02:50.9]} 8...
O-O {[%clk 0:02:27.8]} 9. Qc2 {[%clk 0:02:26.7]} 9... Re8 {[%clk 0:02:22.1]} 10.
c5 {[%clk 0:02:21.6]} 10... Bf8 {[%clk 0:02:22.1]} 11. b5 {[%clk 0:02:18.9]}
11... Nd4 {[%clk 0:01:57.3]} 12. Bxd4 {[%clk 0:02:18.6]} 12... exd4 {[%clk
0:01:58.2]} 13. Ngf3 {[%clk 0:02:17.6]} 13... Nd7 {[%clk 0:01:58.4]} 14. Nb3
{[%clk 0:02:06.2]} 14... Qf6 {[%clk 0:01:45.5]} 15. O-O {[%clk 0:02:01.6]} 15...
Bf7 {[%clk 0:01:42.1]} 16. Rac1 {[%clk 0:01:35.9]} 16... b6 {[%clk 0:01:35.9]}
17. c6 {[%clk 0:01:30.8]} 17... Ne5 {[%clk 0:01:33.5]} 18. a4 {[%clk 0:01:11]}
18... Nxf3+ {[%clk 0:01:31.2]} 19. Bxf3 {[%clk 0:01:11.9]} 19... a5 {[%clk
0:01:31.1]} 20. Qb2 {[%clk 0:01:09.2]} 20... Bd6 {[%clk 0:01:20.1]} 21. Nxd4
{[%clk 0:00:56]} 21... f4 {[%clk 0:01:16.2]} 22. e3 {[%clk 0:00:46.7]} 22...
fxe3 {[%clk 0:01:02.1]} 23. fxe3 {[%clk 0:00:47.6]} 23... Qe5 {[%clk 0:01:02.5]}
24. Rce1 {[%clk 0:00:44.1]} 24... h5 {[%clk 0:01:00.1]} 25. Qg2 {[%clk
0:00:40.5]} 25... Rad8 {[%clk 0:00:39.7]} 26. Bd1 {[%clk 0:00:40.4]} 26... Bg6
{[%clk 0:00:29.8]} 27. Bb3 {[%clk 0:00:29.7]} 27... Bb4 {[%clk 0:00:27.6]} 28.
Re2 {[%clk 0:00:10.7]} 28... Bxd3 {[%clk 0:00:22.6]} 29. Nf3 {[%clk 0:00:05.7]}
29... Qe7 {[%clk 0:00:10.2]} 30. Kh1 {[%clk 0:00:05.7]} 30... Bxe2 {[%clk
0:00:10.2]} 31. Qxe2 {[%clk 0:00:06.6]} 31... Qxe3 {[%clk 0:00:10.2]} 32. Qc2
{[%clk 0:00:04.7]} 32... Qe2 {[%clk 0:00:06.8]} 33. Qxe2 {[%clk 0:00:02.8]}
33... Rxe2 {[%clk 0:00:07.7]} 34. Nd4 {[%clk 0:00:03.3]} 34... Re3 {[%clk
0:00:06.9]} 35. Ba2 {[%clk 0:00:02.9]} 35... Bc5 {[%clk 0:00:06.7]} 36. Nf5
{[%clk 0:00:03.1]} 36... Ree8 {[%clk 0:00:06.8]} 37. Rd1 {[%clk 0:00:02.8]}
37... g6 {[%clk 0:00:05.6]} 38. Bxd5+ {[%clk 0:00:02.4]} 38... Rxd5 {[%clk
0:00:05.4]} 39. Rxd5 {[%clk 0:00:03.3]} 39... gxf5 {[%clk 0:00:06]} 40. Rxf5
{[%clk 0:00:04.1]} 40... Re4 {[%clk 0:00:04.9]} 41. Rxh5 {[%clk 0:00:04.2]}
41... Rxa4 {[%clk 0:00:05.2]} 42. Rd5 {[%clk 0:00:04]} 42... Rb4 {[%clk
0:00:05.1]} 43. Rd8+ {[%clk 0:00:04.6]} 43... Kf7 {[%clk 0:00:05]} 44. Rd7+
{[%clk 0:00:05.5]} 44... Ke6 {[%clk 0:00:05.6]} 45. Rxc7 {[%clk 0:00:06.4]}
45... Rxb5 {[%clk 0:00:06.2]} 46. Rd7 {[%clk 0:00:07]} 46... Bd6 {[%clk
0:00:06.7]} 47. Rd8 {[%clk 0:00:07]} 47... Rc5 {[%clk 0:00:07]} 48. h4 {[%clk
0:00:07]} 48... Rxc6 {[%clk 0:00:07.5]} 49. h5 {[%clk 0:00:07.6]} 49... Bxg3
{[%clk 0:00:07.9]} 50. h6 {[%clk 0:00:08.2]} 50... Be5 {[%clk 0:00:08.3]} 51. h7
{[%clk 0:00:08.5]} 51... Kf5 {[%clk 0:00:08.8]} 52. Rf8+ {[%clk 0:00:08.7]}
52... Ke4 {[%clk 0:00:09.3]} 53. Re8 {[%clk 0:00:09.6]} 53... Rh6+ {[%clk
0:00:09.5]} 54. Kg2 {[%clk 0:00:08.8]} 54... Rxh7 {[%clk 0:00:10.4]} 0-1

[Event "*** Titled Tuesday Blitz"]
[Site "Chess.com"]
[Date "2020.12.29"]
[Round "8"]
[White "GameOverBro"]
[Black "paulrusan"]
[Result "0-1"]
[WhiteElo "2457"]
[BlackElo "2270"]
[TimeControl "180+1"]
[EndTime "11:28:44 PST"]
[Termination "paulrusan won on time"]

1. e4 {[%clk 0:03:00.9]} 1... g6 {[%clk 0:02:59.7]} 2. Nc3 {[%clk 0:02:59.3]}
2... Bg7 {[%clk 0:02:58.7]} 3. Nge2 {[%clk 0:02:59.9]} 3... c5 {[%clk
0:02:56.7]} 4. d4 {[%clk 0:02:58.9]} 4... cxd4 {[%clk 0:02:56.4]} 5. Nxd4 {[%clk
0:02:59.8]} 5... Nc6 {[%clk 0:02:56.8]} 6. Nde2 {[%clk 0:03:00.4]} 6... Nf6
{[%clk 0:02:56]} 7. g3 {[%clk 0:03:00.9]} 7... O-O {[%clk 0:02:55.5]} 8. Bg2
{[%clk 0:03:01.4]} 8... d6 {[%clk 0:02:54.8]} 9. O-O {[%clk 0:03:01.7]} 9... Bd7
{[%clk 0:02:49.8]} 10. Re1 {[%clk 0:03:00.1]} 10... a5 {[%clk 0:02:47.9]} 11. h3
{[%clk 0:02:59.1]} 11... a4 {[%clk 0:02:47.8]} 12. a3 {[%clk 0:02:55.7]} 12...
Qa5 {[%clk 0:02:47]} 13. Nd5 {[%clk 0:02:54.1]} 13... Rfe8 {[%clk 0:02:08.5]}
14. Bd2 {[%clk 0:02:48.3]} 14... Qd8 {[%clk 0:01:45.3]} 15. Bc3 {[%clk
0:02:47.3]} 15... Nxd5 {[%clk 0:01:33.4]} 16. exd5 {[%clk 0:02:46.2]} 16... Na5
{[%clk 0:01:33.5]} 17. Bxg7 {[%clk 0:02:40.3]} 17... Kxg7 {[%clk 0:01:29.9]} 18.
Qd4+ {[%clk 0:02:27.1]} 18... Kg8 {[%clk 0:01:26.9]} 19. Nc3 {[%clk 0:02:20.2]}
19... Rc8 {[%clk 0:01:25.1]} 20. Bf1 {[%clk 0:02:20.1]} 20... Qc7 {[%clk
0:01:18.7]} 21. Re3 {[%clk 0:02:19.3]} 21... Qc5 {[%clk 0:01:14.7]} 22. Qf4
{[%clk 0:02:10.5]} 22... Nc4 {[%clk 0:01:09.4]} 23. Bxc4 {[%clk 0:02:07]} 23...
Qxc4 {[%clk 0:01:09.2]} 24. Re4 {[%clk 0:02:06.7]} 24... Qc5 {[%clk 0:01:05.3]}
25. Rae1 {[%clk 0:02:06.1]} 25... e5 {[%clk 0:01:00.5]} 26. dxe6 {[%clk
0:02:03.1]} 26... fxe6 {[%clk 0:00:59.9]} 27. h4 {[%clk 0:01:57.3]} 27... d5
{[%clk 0:00:59.8]} 28. Re5 {[%clk 0:01:51.5]} 28... Qf8 {[%clk 0:00:58.2]} 29.
Qg5 {[%clk 0:01:46.3]} 29... Rxc3 {[%clk 0:00:54.8]} 30. bxc3 {[%clk 0:01:43.2]}
30... Rc8 {[%clk 0:00:53.9]} 31. h5 {[%clk 0:01:38.9]} 31... Kg7 {[%clk
0:00:53.8]} 32. R5e3 {[%clk 0:01:13.5]} 32... Qf6 {[%clk 0:00:51.2]} 33. h6+
{[%clk 0:01:10.6]} 33... Kf7 {[%clk 0:00:51.1]} 34. Qg4 {[%clk 0:01:06.6]} 34...
Kg8 {[%clk 0:00:43.1]} 35. Rf3 {[%clk 0:01:04.8]} 35... Qe7 {[%clk 0:00:43.2]}
36. Re5 {[%clk 0:00:58.7]} 36... Rc4 {[%clk 0:00:40.1]} 37. Rf4 {[%clk
0:00:41.7]} 37... Rxc3 {[%clk 0:00:38.5]} 38. Rb4 {[%clk 0:00:35.3]} 38... b5
{[%clk 0:00:35.2]} 39. Rg5 {[%clk 0:00:23.7]} 39... Rc4 {[%clk 0:00:24.5]} 40.
Rxc4 {[%clk 0:00:20.4]} 40... bxc4 {[%clk 0:00:24.3]} 41. Qd4 {[%clk 0:00:19.9]}
41... Kf7 {[%clk 0:00:11.7]} 42. Rg4 {[%clk 0:00:15.8]} 42... Ke8 {[%clk
0:00:08.5]} 43. Rf4 {[%clk 0:00:15]} 43... e5 {[%clk 0:00:07.9]} 44. Qb6 {[%clk
0:00:04.7]} 44... exf4 {[%clk 0:00:08]} 45. Qb8+ {[%clk 0:00:05]} 45... Qd8
{[%clk 0:00:07.6]} 46. Qe5+ {[%clk 0:00:04.9]} 46... Qe7 {[%clk 0:00:07.9]} 47.
Qb8+ {[%clk 0:00:05.1]} 47... Kf7 {[%clk 0:00:08]} 48. Qxf4+ {[%clk 0:00:05.2]}
48... Qf6 {[%clk 0:00:08.4]} 49. Qc7 {[%clk 0:00:05]} 49... Qe6 {[%clk
0:00:08.4]} 50. Kh2 {[%clk 0:00:03.6]} 50... g5 {[%clk 0:00:08.6]} 51. Qd8
{[%clk 0:00:03.3]} 51... Qh3+ {[%clk 0:00:08.2]} 52. Kg1 {[%clk 0:00:03.2]}
52... Kg6 {[%clk 0:00:08.4]} 53. Qe7 {[%clk 0:00:02]} 53... Kxh6 {[%clk
0:00:07.9]} 54. Qf6+ {[%clk 0:00:01.7]} 54... Kh5 {[%clk 0:00:08.2]} 0-1